fUST/lending_fUST_20260521
["ID","MTS","AMOUNT","RATE_DAILY","PERIOD"]
[422719273,1779301846000,-397.615607,9.676e-05,2]
[422719285,1779301846000,-209.880391,9.8e-05,2]
[422719275,1779301846000,-372.331189,9.7e-05,2]
[422719286,1779301846000,-189.031975,9.8e-05,2]
[422719288,1779301846000,-161.091923,9.824e-05,2]
[422719287,1779301846000,-200.486024,9.822e-05,2]
[422719276,1779301846000,-319.427598,9.7e-05,2]
[422719274,1779301846000,-635.231215,9.676e-05,2]
[422719277,1779301846000,-216.713916,9.724e-05,2]
[422719283,1779301846000,-182.01609,9.8e-05,2]
[422719281,1779301846000,-241.631332,9.8e-05,2]
[422719280,1779301846000,-495398.8170908,9.8e-05,2]
[422719282,1779301846000,-193.112877,9.8e-05,2]
[422719279,1779301846000,-338.029883,9.724e-05,2]
[422719297,1779301846000,-500.0,9.863e-05,2]
[422719300,1779301846000,-1328.63,9.863e-05,2]
[422719299,1779301846000,-515.9,9.863e-05,2]
[422719298,1779301846000,-655.44,9.863e-05,2]
[422719292,1779301846000,-3432.207,9.863e-05,2]
[422719290,1779301846000,-191.656558,9.824e-05,2]
[422719302,1779301846000,-500.0,9.863e-05,2]
[422719296,1779301846000,-789.8,9.863e-05,2]
[422719294,1779301846000,-500.0,9.863e-05,2]
[422719293,1779301846000,-657.4494,9.863e-05,2]
[422719291,1779301846000,-176.022271,9.824e-05,2]
[422719289,1779301846000,-224.122434,9.824e-05,2]
[422719284,1779301846000,-170.647903,9.8e-05,2]
[422719278,1779301846000,-374.946331,9.724e-05,2]
[422719295,1779301846000,-500.0,9.863e-05,2]
[422719332,1779301846000,-998.19,9.863e-05,2]
[422719356,1779301846000,-500.0,9.863e-05,2]
[422719343,1779301846000,-1021.79,9.863e-05,2]
[422719386,1779301846000,-5061.06,9.863e-05,2]
[422719388,1779301846000,-3142.43,9.863e-05,2]
[422719376,1779301846000,-500.0,9.863e-05,2]
[422719379,1779301846000,-500.0,9.863e-05,2]
[422719378,1779301846000,-1815.11,9.863e-05,2]
[422719377,1779301846000,-1584.79,9.863e-05,2]
[422719381,1779301846000,-500.0,9.863e-05,2]
[422719385,1779301846000,-500.0,9.863e-05,2]
[422719380,1779301846000,-2285.15,9.863e-05,2]
[422719383,1779301846000,-5945.74,9.863e-05,2]
[422719382,1779301846000,-1214.55,9.863e-05,2]
[422719384,1779301846000,-500.0,9.863e-05,2]
[422719389,1779301846000,-1870.68,9.863e-05,2]
[422719391,1779301846000,-500.0,9.863e-05,2]
[422719387,1779301846000,-500.0,9.863e-05,2]
[422719390,1779301846000,-966.34,9.863e-05,2]
[422719394,1779301846000,-2610.79,9.863e-05,2]
[422719400,1779301846000,-525.40157838,9.863e-05,2]
[422719393,1779301846000,-848.41,9.863e-05,2]
[422719395,1779301846000,-29896.73,9.863e-05,2]
[422719401,1779301846000,-1972.88,9.863e-05,2]
[422719392,1779301846000,-956.76,9.863e-05,2]
[422719397,1779301846000,-3990.0,9.863e-05,2]
[422719398,1779301846000,-500.0,9.863e-05,2]
[422719399,1779301846000,-5851.38,9.863e-05,2]
[422719403,1779301846000,-787.76,9.863e-05,2]
[422719402,1779301846000,-1972.65,9.863e-05,2]
[422719404,1779301846000,-581.1567065,9.863e-05,2]
[422719405,1779301846000,-1046.14,9.863e-05,2]
[422719406,1779301846000,-1261.24,9.863e-05,2]
[422719344,1779301846000,-500.0,9.863e-05,2]
[422719374,1779301846000,-1727.17,9.863e-05,2]
[422719396,1779301846000,-1576.69,9.863e-05,2]
[422719373,1779301846000,-670.64,9.863e-05,2]
[422719375,1779301846000,-500.0,9.863e-05,2]
[422719342,1779301846000,-1078.6,9.863e-05,2]
[422719335,1779301846000,-676.26,9.863e-05,2]
[422719336,1779301846000,-537.24,9.863e-05,2]
[422719334,1779301846000,-500.0,9.863e-05,2]
[422719338,1779301846000,-578.39,9.863e-05,2]
[422719337,1779301846000,-1606.86,9.863e-05,2]
[422719339,1779301846000,-611.08,9.863e-05,2]
[422719347,1779301846000,-3051.98,9.863e-05,2]
[422719357,1779301846000,-597.58,9.863e-05,2]
[422719355,1779301846000,-500.0,9.863e-05,2]
[422719349,1779301846000,-500.0,9.863e-05,2]
[422719352,1779301846000,-500.0,9.863e-05,2]
[422719351,1779301846000,-1028.78,9.863e-05,2]
[422719354,1779301846000,-500.0,9.863e-05,2]
[422719346,1779301846000,-549.27,9.863e-05,2]
[422719358,1779301846000,-772.04,9.863e-05,2]
[422719371,1779301846000,-835.52,9.863e-05,2]
[422719353,1779301846000,-578.13,9.863e-05,2]
[422719372,1779301846000,-690.24,9.863e-05,2]
[422719369,1779301846000,-2125.89,9.863e-05,2]
[422719367,1779301846000,-1357.75,9.863e-05,2]
[422719363,1779301846000,-500.0,9.863e-05,2]
[422719365,1779301846000,-2851.55,9.863e-05,2]
[422719368,1779301846000,-500.0,9.863e-05,2]
[422719370,1779301846000,-500.0,9.863e-05,2]
[422719364,1779301846000,-1024.69,9.863e-05,2]
[422719362,1779301846000,-500.0,9.863e-05,2]
[422719361,1779301846000,-549.84,9.863e-05,2]
[422719359,1779301846000,-743.2,9.863e-05,2]
[422719360,1779301846000,-500.0,9.863e-05,2]
[422719366,1779301846000,-2068.65,9.863e-05,2]
[422719415,1779301847000,-500.0,9.863e-05,2]
[422719439,1779301847000,-584.647994,9.996e-05,2]
[422719427,1779301847000,-500.0,9.863e-05,2]
[422719429,1779301847000,-2691.0,9.863e-05,2]
[422719440,1779301847000,-120847.96669693,0.0001,2]
[422719430,1779301847000,-1299.74,9.863e-05,2]
[422719432,1779301847000,-27979.87743051,9.88e-05,2]
[422719436,1779301847000,-888.987854,9.996e-05,2]
[422719441,1779301847000,-299699.4806065,0.0001,2]
[422719428,1779301847000,-742.19,9.863e-05,2]
[422719442,1779301847000,-1098.86517329,0.0001,2]
[422719435,1779301847000,-175.81465853,9.994e-05,2]
[422719437,1779301847000,-364.342978,9.996e-05,2]
[422719431,1779301847000,-500.0,9.863e-05,2]
[422719426,1779301847000,-500.0,9.863e-05,2]
[422719433,1779301847000,-15592.012457,9.9e-05,2]
[422719425,1779301847000,-3224.8,9.863e-05,2]
[422719434,1779301847000,-517.0140453,9.911e-05,2]
[422719414,1779301847000,-1335.41,9.863e-05,2]
[422719409,1779301847000,-1006.5,9.863e-05,2]
[422719410,1779301847000,-4907.49,9.863e-05,2]
[422719411,1779301847000,-1720.23,9.863e-05,2]
[422719412,1779301847000,-697.39,9.863e-05,2]
[422719413,1779301847000,-500.0,9.863e-05,2]
[422719408,1779301847000,-2562.66,9.863e-05,2]
[422719407,1779301847000,-1226.64,9.863e-05,2]
[422719422,1779301847000,-1990.25,9.863e-05,2]
[422719424,1779301847000,-6801.99,9.863e-05,2]
[422719419,1779301847000,-1741.68,9.863e-05,2]
[422719416,1779301847000,-1696.27,9.863e-05,2]
[422719417,1779301847000,-579.67,9.863e-05,2]
[422719418,1779301847000,-985.86,9.863e-05,2]
[422719420,1779301847000,-1162.15,9.863e-05,2]
[422719421,1779301847000,-5144.56,9.863e-05,2]
[422719423,1779301847000,-675.56,9.863e-05,2]
[422719438,1779301847000,-420.496604,9.996e-05,2]
[422719478,1779301847000,-500.0,9.041e-05,2]
[422719446,1779301847000,-81719.54648013,0.0001,2]
[422719465,1779301847000,-473.27240735,9.041e-05,2]
[422719464,1779301847000,-500.0,8.219e-05,2]
[422719467,1779301847000,-216.23785847,9.315e-05,2]
[422719466,1779301847000,-41.76168667,9.041e-05,2]
[422719469,1779301847000,-944.46,9.589e-05,2]
[422719468,1779301847000,-728.22214153,9.315e-05,2]
[422719470,1779301847000,-826.99521212,9.863e-05,2]
[422719473,1779301847000,-106.62661546,8.493e-05,2]
[422719471,1779301847000,-500.0,8.219e-05,2]
[422719472,1779301847000,-500.0,8.493e-05,2]
[422719475,1779301847000,-500.0,8.767e-05,2]
[422719474,1779301847000,-393.37338454,8.493e-05,2]
[422719477,1779301847000,-500.0,9.041e-05,2]
[422719476,1779301847000,-500.0,8.767e-05,2]
[422719479,1779301847000,-500.0,9.315e-05,2]
[422719462,1779301847000,-695.4742,8.767e-05,2]
[422719463,1779301847000,-429.42590598,9.041e-05,2]
[422719443,1779301847000,-18502.27547977,0.0001,2]
[422719459,1779301847000,-793.044439,8.219e-05,2]
[422719461,1779301847000,-248.9858,8.767e-05,2]
[422719450,1779301847000,-441508.98611688,0.0001,2]
[422719444,1779301847000,-4395.51022517,0.0001,2]
[422719447,1779301847000,-1102.80756099,0.0001,2]
[422719448,1779301847000,-150385.37211243,0.0001,2]
[422719449,1779301847000,-513471.40708928,0.0001,2]
[422719451,1779301847000,-20952.33928004,0.0001,2]
[422719445,1779301847000,-200.29,0.0001,2]
[422719455,1779301847000,-38614.99999999,0.0001,2]
[422719454,1779301847000,-5077.43394479,0.0001,2]
[422719452,1779301847000,-27854.63210896,0.0001,2]
[422719456,1779301847000,-263493.71135191,0.0001,2]
[422719458,1779301847000,-151.415561,8.219e-05,2]
[422719457,1779301847000,-161.70661154,8.119e-05,2]
[422719460,1779301847000,-944.46,8.493e-05,2]
[422719453,1779301847000,-1615.3529169,0.0001,2]
[422719481,1779301848000,-500.0,9.589e-05,2]
[422719483,1779301848000,-100434.70957939,0.0001,2]
[422719482,1779301848000,-117.46478788,9.863e-05,2]
[422719484,1779301848000,-37413.73055058,0.0001,2]
[422719485,1779301848000,-22356.04873341,0.0001,2]
[422719480,1779301848000,-211.8682091,9.315e-05,2]
[422719487,1779302291000,230.569601,3.452e-05,2]
[422719490,1779302829000,-435.48771741,7.567e-05,2]
[422719489,1779302829000,-152.0,7.567e-05,7]
[422719524,1779303035000,-1187.0,7.714e-05,2]
[422719521,1779303035000,-56.25136548,7.567e-05,2]
[422719523,1779303035000,-300.0,7.714e-05,2]
[422719522,1779303035000,-152.0,7.569e-05,7]
[422719526,1779303035000,-199.03337877,7.715e-05,2]
[422719525,1779303035000,-500.0,7.715e-05,2]
[422719527,1779303035000,-500.0,7.715e-05,2]
[422719528,1779303035000,-500.0,7.715e-05,2]
[422719533,1779303035000,-44027.4447911,7.716e-05,2]
[422719531,1779303035000,-500.0,7.715e-05,2]
[422719529,1779303035000,-500.0,7.715e-05,2]
[422719530,1779303035000,-500.0,7.715e-05,2]
[422719532,1779303035000,-500.0,7.715e-05,2]
[422719539,1779303038000,-152.0,7.741e-05,2]
[422719542,1779303038000,-40843.63100833,8.119e-05,2]
[422719540,1779303038000,-357.65257244,8e-05,2]
[422719538,1779303038000,-922871.98691774,7.716e-05,2]
[422719541,1779303038000,-152.0,8.099e-05,30]
[422719544,1779303038000,-2360.07251678,8.119e-05,2]
[422719545,1779303038000,-1964.314334,8.119e-05,2]
[422719543,1779303038000,-1631.02287221,8.119e-05,2]
[422719577,1779303043000,-500.0,8.219e-05,2]
[422719594,1779303043000,-500.0,8.219e-05,2]
[422719589,1779303043000,-500.0,8.219e-05,2]
[422719590,1779303043000,-634.55,8.219e-05,2]
[422719588,1779303043000,-1248.66,8.219e-05,2]
[422719591,1779303043000,-796.27,8.219e-05,2]
[422719587,1779303043000,-500.0,8.219e-05,2]
[422719585,1779303043000,-788.66,8.219e-05,2]
[422719579,1779303043000,-716.83,8.219e-05,2]
[422719576,1779303043000,-500.0,8.219e-05,2]
[422719578,1779303043000,-500.0,8.219e-05,2]
[422719581,1779303043000,-865.65,8.219e-05,2]
[422719573,1779303043000,-500.0,8.219e-05,2]
[422719583,1779303043000,-926.05,8.219e-05,2]
[422719574,1779303043000,-500.0,8.219e-05,2]
[422719571,1779303043000,-692.69,8.219e-05,2]
[422719584,1779303043000,-500.0,8.219e-05,2]
[422719580,1779303043000,-500.0,8.219e-05,2]
[422719582,1779303043000,-500.0,8.219e-05,2]
[422719572,1779303043000,-500.0,8.219e-05,2]
[422719570,1779303043000,-3405.6255,8.219e-05,2]
[422719569,1779303043000,-3433.4995154,8.119e-05,2]
[422719593,1779303043000,-500.0,8.219e-05,2]
[422719575,1779303043000,-500.0,8.219e-05,2]
[422719592,1779303043000,-1839.32,8.219e-05,2]
[422719608,1779303043000,-645.68,8.219e-05,2]
[422719586,1779303043000,-500.0,8.219e-05,2]
[422719596,1779303043000,-168.69803183,8.219e-05,2]
[422719616,1779303043000,-543.0,8.219e-05,2]
[422719617,1779303043000,-1399.91,8.219e-05,2]
[422719619,1779303043000,-1655.95,8.219e-05,2]
[422719615,1779303043000,-1792.76,8.219e-05,2]
[422719613,1779303043000,-579.2,8.219e-05,2]
[422719614,1779303043000,-2474.21,8.219e-05,2]
[422719612,1779303043000,-500.0,8.219e-05,2]
[422719604,1779303043000,-500.0,8.219e-05,2]
[422719603,1779303043000,-588.21,8.219e-05,2]
[422719605,1779303043000,-599.52,8.219e-05,2]
[422719610,1779303043000,-500.0,8.219e-05,2]
[422719602,1779303043000,-500.0,8.219e-05,2]
[422719595,1779303043000,-500.0,8.219e-05,2]
[422719609,1779303043000,-1304.86,8.219e-05,2]
[422719599,1779303043000,-500.0,8.219e-05,2]
[422719618,1779303043000,-500.0,8.219e-05,2]
[422719598,1779303043000,-500.0,8.219e-05,2]
[422719597,1779303043000,-572.72967465,8.219e-05,2]
[422719600,1779303043000,-790.56,8.219e-05,2]
[422719607,1779303043000,-852.88,8.219e-05,2]
[422719606,1779303043000,-869.05,8.219e-05,2]
[422719611,1779303043000,-733.68,8.219e-05,2]
[422719601,1779303043000,-500.0,8.219e-05,2]
[422719628,1779303044000,-1128.61,8.219e-05,2]
[422719620,1779303044000,-500.0,8.219e-05,2]
[422719621,1779303044000,-2299.71101244,8.219e-05,2]
[422719623,1779303044000,-1966.28214732,8.219e-05,2]
[422719622,1779303044000,-2687.38898756,8.219e-05,2]
[422719624,1779303044000,-1126.90394658,8.219e-05,2]
[422719626,1779303044000,-2529.79,8.219e-05,2]
[422719625,1779303044000,-782.3039061,8.219e-05,2]
[422719638,1779303044000,-500.0,8.219e-05,2]
[422719635,1779303044000,-1900.28465855,8.219e-05,2]
[422719629,1779303044000,-534.9,8.219e-05,2]
[422719627,1779303044000,-746.94,8.219e-05,2]
[422719631,1779303044000,-1463.1,8.219e-05,2]
[422719630,1779303044000,-500.0,8.219e-05,2]
[422719632,1779303044000,-761.04,8.219e-05,2]
[422719633,1779303044000,-500.0,8.219e-05,2]
[422719637,1779303044000,-1158.46,8.219e-05,2]
[422719636,1779303044000,-392.59790308,8.219e-05,2]
[422719634,1779303044000,-114.65743837,8.219e-05,2]
[422719639,1779303044000,-378.50054405,8.219e-05,2]
[422719669,1779303654000,-210.34184346,7.467e-05,2]
[422719670,1779303671000,-500.0,7.467e-05,2]
[422719671,1779303687000,-500.0,7.467e-05,2]
[422719672,1779303704000,-500.0,7.467e-05,2]
[422719675,1779303721000,-488.60499403,7.541e-05,2]
[422719676,1779303738000,-1200.0,7.614e-05,2]
[422719678,1779303755000,-300.0,7.614e-05,2]
[422719679,1779303772000,-4700.0,7.615e-05,2]
[422719733,1779304233000,-478.83289415,7.515e-05,2]
[422719715,1779304233000,-300.0,7.514e-05,2]
[422719727,1779304233000,-601.31610056,7.515e-05,2]
[422719729,1779304233000,-500.0,7.515e-05,2]
[422719717,1779304233000,-5060.82574865,7.515e-05,2]
[422719731,1779304233000,-500.0,7.515e-05,2]
[422719719,1779304233000,-500.0,7.515e-05,2]
[422719723,1779304233000,-500.0,7.515e-05,2]
[422719721,1779304233000,-500.0,7.515e-05,2]
[422719734,1779304233000,-1212.74873922,7.516e-05,2]
[422719735,1779304233000,-304.13367797,7.516e-05,2]
[422719730,1779304233000,-500.0,7.515e-05,2]
[422719725,1779304233000,-500.0,7.515e-05,2]
[422719732,1779304233000,-422.87748113,7.515e-05,2]
[422719726,1779304233000,-500.0,7.515e-05,2]
[422719736,1779304234000,-604.25649054,7.516e-05,2]
[422719740,1779304238000,-62834.85286892,7.516e-05,2]
[422719741,1779304238000,-9319.55568876,7.516e-05,2]
[422719743,1779304238000,-500.0,8.218e-05,2]
[422719742,1779304238000,-500.0,8.218e-05,2]
[422719744,1779304238000,-500.0,8.218e-05,2]
[422719750,1779304238000,-500.0,8.219e-05,2]
[422719745,1779304238000,-500.0,8.218e-05,2]
[422719747,1779304238000,-2197.5986,8.219e-05,2]
[422719749,1779304238000,-500.0,8.219e-05,2]
[422719746,1779304238000,-589.32336513,8.218e-05,2]
[422719748,1779304238000,-686.96,8.219e-05,2]
[422719753,1779304238000,-500.0,8.219e-05,2]
[422719756,1779304238000,-500.0,8.219e-05,2]
[422719754,1779304238000,-783.92,8.219e-05,2]
[422719758,1779304238000,-215.92370962,8.219e-05,2]
[422719757,1779304238000,-613.65629038,8.219e-05,2]
[422719759,1779304238000,-887.47,8.219e-05,2]
[422719760,1779304238000,-203.28452992,8.219e-05,2]
[422719755,1779304238000,-563.71,8.219e-05,2]
[422719751,1779304238000,-500.0,8.219e-05,2]
[422719752,1779304238000,-755.8,8.219e-05,2]
[422719775,1779304243000,-296.71547008,8.219e-05,2]
[422719777,1779304243000,-278.69529317,8.219e-05,2]
[422719778,1779304244000,-557.18407237,8.219e-05,2]
[422719786,1779304246000,-381.58063446,8.219e-05,2]
[422719810,1779304247000,-703.11,8.219e-05,2]
[422719789,1779304247000,-500.0,8.219e-05,2]
[422719791,1779304247000,-301.86063446,8.219e-05,2]
[422719790,1779304247000,-349.90936554,8.219e-05,2]
[422719793,1779304247000,-500.0,8.219e-05,2]
[422719788,1779304247000,-500.0,8.219e-05,2]
[422719792,1779304247000,-853.68,8.219e-05,2]
[422719787,1779304247000,-1783.51,8.219e-05,2]
[422719794,1779304247000,-500.0,8.219e-05,2]
[422719795,1779304247000,-757.62,8.219e-05,2]
[422719812,1779304247000,-277.21888718,8.219e-05,2]
[422719799,1779304247000,-500.0,8.219e-05,2]
[422719796,1779304247000,-500.0,8.219e-05,2]
[422719798,1779304247000,-500.0,8.219e-05,2]
[422719809,1779304247000,-1271.33,8.219e-05,2]
[422719808,1779304247000,-500.0,8.219e-05,2]
[422719797,1779304247000,-977.57,8.219e-05,2]
[422719807,1779304247000,-608.11,8.219e-05,2]
[422719805,1779304247000,-574.54,8.219e-05,2]
[422719804,1779304247000,-567.93063446,8.219e-05,2]
[422719801,1779304247000,-618.78,8.219e-05,2]
[422719800,1779304247000,-500.0,8.219e-05,2]
[422719802,1779304247000,-490.48936554,8.219e-05,2]
[422719803,1779304247000,-304.0,8.219e-05,2]
[422719806,1779304247000,-568.24,8.219e-05,2]
[422719841,1779305209000,212.23096853,0.00017,120]
[422719843,1779305243000,-253.02466459,7.6e-05,2]
[422719844,1779305308000,183.65330819,0.00013473,120]
[422719877,1779305432000,-38.712,7.599e-05,2]
[422719876,1779305432000,-300.0,7.599e-05,2]
[422719884,1779305432000,-605.01617787,7.599e-05,2]
[422719878,1779305432000,-261.288,7.599e-05,2]
[422719880,1779305432000,-300.0,7.599e-05,2]
[422719882,1779305432000,-300.0,7.599e-05,2]
[422719959,1779305438000,-500.0,8.118e-05,2]
[422719926,1779305438000,-594.98382213,7.599e-05,2]
[422719935,1779305438000,-500.0,7.629e-05,2]
[422719928,1779305438000,-375.75478774,7.6e-05,2]
[422719929,1779305438000,-46580.17,7.6e-05,2]
[422719931,1779305438000,-500.0,7.629e-05,2]
[422719933,1779305438000,-376.84429421,7.629e-05,2]
[422719937,1779305438000,-500.0,7.629e-05,2]
[422719939,1779305438000,-325.71547518,7.629e-05,2]
[422719941,1779305438000,-500.0,7.629e-05,2]
[422719946,1779305438000,-485.41950113,7.63e-05,2]
[422719958,1779305438000,-500.0,8.118e-05,2]
[422719947,1779305438000,-200.0,7.711e-05,2]
[422719951,1779305438000,-3166.6905778,7.718e-05,2]
[422719949,1779305438000,-200.0,7.711e-05,7]
[422719953,1779305438000,-500.0,8.118e-05,2]
[422719952,1779305438000,-184.979,7.957e-05,2]
[422719956,1779305438000,-500.0,8.118e-05,2]
[422719955,1779305438000,-500.0,8.118e-05,2]
[422719954,1779305438000,-263.96750134,8.118e-05,2]
[422719957,1779305438000,-500.0,8.118e-05,2]
[422719944,1779305438000,-464.52296662,7.629e-05,2]
[422719943,1779305438000,-500.0,7.629e-05,2]
[422719960,1779305439000,-500.0,8.118e-05,2]
[422719962,1779305439000,-759487.91694604,8.119e-05,2]
[422719961,1779305439000,-186316.12621742,8.119e-05,2]
[422719969,1779305444000,-1517.29290534,8.119e-05,2]
[422719981,1779305447000,-2578.48623378,8.219e-05,2]
[422719980,1779305447000,-312.94600085,8.133e-05,2]
[422719979,1779305447000,-13759.33650031,8.119e-05,2]
[422720015,1779306332000,-213.61264859,7.34e-05,2]
[422720014,1779306332000,-166.35598,7.111e-05,2]
[422720019,1779306428000,-122.73453422,7.65e-05,7]
[422720018,1779306428000,-152.0,7.569e-05,7]
[422720017,1779306428000,-279.30687791,7.34e-05,2]
[422720188,1779306638000,-500.0,8.218e-05,2]
[422720185,1779306638000,-500.0,8.218e-05,2]
[422720186,1779306638000,-500.0,8.218e-05,2]
[422720182,1779306638000,-500.0,8.218e-05,2]
[422720193,1779306638000,-500.0,8.219e-05,2]
[422720184,1779306638000,-500.0,8.218e-05,2]
[422720183,1779306638000,-184.77725094,8.218e-05,2]
[422720177,1779306638000,-1200.0,8.091e-05,2]
[422720180,1779306638000,-229.99,8.107e-05,2]
[422720176,1779306638000,-300.0,8.091e-05,2]
[422720175,1779306638000,-157.6602403,8.091e-05,2]
[422720179,1779306638000,-6246.6375789,8.092e-05,2]
[422720173,1779306638000,-1964.314334,8.019e-05,2]
[422720178,1779306638000,-1689.9064054,8.092e-05,2]
[422720172,1779306638000,-491.77089032,7.834e-05,2]
[422720171,1779306638000,-29.26546578,7.65e-05,7]
[422720192,1779306638000,-500.0,8.219e-05,2]
[422720174,1779306638000,-163.42160288,8.051e-05,2]
[422720187,1779306638000,-273.83588518,8.218e-05,2]
[422720181,1779306638000,-500.0,8.218e-05,2]
[422720190,1779306638000,-2552.918,8.219e-05,2]
[422720211,1779306638000,-500.0,8.219e-05,2]
[422720209,1779306638000,-582.78,8.219e-05,2]
[422720210,1779306638000,-500.0,8.219e-05,2]
[422720208,1779306638000,-500.0,8.219e-05,2]
[422720206,1779306638000,-500.0,8.219e-05,2]
[422720189,1779306638000,-500.0,8.218e-05,2]
[422720205,1779306638000,-936.83,8.219e-05,2]
[422720202,1779306638000,-871.32,8.219e-05,2]
[422720200,1779306638000,-500.0,8.219e-05,2]
[422720207,1779306638000,-500.0,8.219e-05,2]
[422720204,1779306638000,-500.0,8.219e-05,2]
[422720201,1779306638000,-815.84,8.219e-05,2]
[422720195,1779306638000,-500.0,8.219e-05,2]
[422720199,1779306638000,-500.0,8.219e-05,2]
[422720196,1779306638000,-500.0,8.219e-05,2]
[422720198,1779306638000,-500.0,8.219e-05,2]
[422720197,1779306638000,-691.22,8.219e-05,2]
[422720194,1779306638000,-500.0,8.219e-05,2]
[422720203,1779306638000,-500.0,8.219e-05,2]
[422720191,1779306638000,-663.83,8.219e-05,2]
[422720247,1779306639000,-520.37,8.219e-05,2]
[422720245,1779306639000,-500.0,8.219e-05,2]
[422720248,1779306639000,-2555.84,8.219e-05,2]
[422720253,1779306639000,-512.61,8.219e-05,2]
[422720244,1779306639000,-500.0,8.219e-05,2]
[422720246,1779306639000,-1418.8,8.219e-05,2]
[422720243,1779306639000,-500.0,8.219e-05,2]
[422720237,1779306639000,-1239.19,8.219e-05,2]
[422720250,1779306639000,-500.0,8.219e-05,2]
[422720252,1779306639000,-2063.65,8.219e-05,2]
[422720251,1779306639000,-500.35605348,8.219e-05,2]
[422720259,1779306639000,-1752.64,8.219e-05,2]
[422720255,1779306639000,-500.0,8.219e-05,2]
[422720254,1779306639000,-541.72,8.219e-05,2]
[422720256,1779306639000,-555.07,8.219e-05,2]
[422720258,1779306639000,-1136.52,8.219e-05,2]
[422720257,1779306639000,-500.0,8.219e-05,2]
[422720260,1779306639000,-500.0,8.219e-05,2]
[422720262,1779306639000,-729.33,8.219e-05,2]
[422720234,1779306639000,-592.99,8.219e-05,2]
[422720261,1779306639000,-2454.06,8.219e-05,2]
[422720264,1779306639000,-5220.33,8.219e-05,2]
[422720249,1779306639000,-506.99775431,8.219e-05,2]
[422720233,1779306639000,-500.0,8.219e-05,2]
[422720226,1779306639000,-500.0,8.219e-05,2]
[422720236,1779306639000,-500.0,8.219e-05,2]
[422720218,1779306639000,-544.56,8.219e-05,2]
[422720214,1779306639000,-500.0,8.219e-05,2]
[422720213,1779306639000,-762.16,8.219e-05,2]
[422720212,1779306639000,-1187.57,8.219e-05,2]
[422720216,1779306639000,-500.0,8.219e-05,2]
[422720219,1779306639000,-1912.1,8.219e-05,2]
[422720220,1779306639000,-685.29,8.219e-05,2]
[422720221,1779306639000,-500.0,8.219e-05,2]
[422720225,1779306639000,-500.0,8.219e-05,2]
[422720228,1779306639000,-726.05,8.219e-05,2]
[422720227,1779306639000,-799.54,8.219e-05,2]
[422720224,1779306639000,-500.0,8.219e-05,2]
[422720222,1779306639000,-500.0,8.219e-05,2]
[422720223,1779306639000,-500.0,8.219e-05,2]
[422720265,1779306639000,-1538.17,8.219e-05,2]
[422720229,1779306639000,-500.0,8.219e-05,2]
[422720239,1779306639000,-817.35,8.219e-05,2]
[422720241,1779306639000,-500.0,8.219e-05,2]
[422720242,1779306639000,-673.81,8.219e-05,2]
[422720230,1779306639000,-562.22,8.219e-05,2]
[422720231,1779306639000,-500.0,8.219e-05,2]
[422720235,1779306639000,-500.0,8.219e-05,2]
[422720238,1779306639000,-550.6,8.219e-05,2]
[422720232,1779306639000,-818.11,8.219e-05,2]
[422720263,1779306639000,-500.08891784,8.219e-05,2]
[422720314,1779306639000,-2015.81,8.219e-05,2]
[422720267,1779306639000,-500.0,8.219e-05,2]
[422720296,1779306639000,-523.03,8.219e-05,2]
[422720302,1779306639000,-2462.19,8.219e-05,2]
[422720293,1779306639000,-1382.57,8.219e-05,2]
[422720297,1779306639000,-527.37,8.219e-05,2]
[422720299,1779306639000,-1014.7593,8.219e-05,2]
[422720298,1779306639000,-3528.18,8.219e-05,2]
[422720301,1779306639000,-1721.04,8.219e-05,2]
[422720300,1779306639000,-1178.61,8.219e-05,2]
[422720304,1779306639000,-719.87,8.219e-05,2]
[422720306,1779306639000,-500.0,8.219e-05,2]
[422720292,1779306639000,-1382.57,8.219e-05,2]
[422720305,1779306639000,-500.0,8.219e-05,2]
[422720309,1779306639000,-500.0,8.219e-05,2]
[422720307,1779306639000,-890.44,8.219e-05,2]
[422720311,1779306639000,-500.0,8.219e-05,2]
[422720310,1779306639000,-500.0,8.219e-05,2]